bitfinex/quotes_ETHUSD_20250110
["timestamp","ask_amount","ask_price","bid_price","bid_amount"]
[1736516858439,8.8006899,3249.1,3249.0,0.1677341]
[1736516858617,8.77,3249.5,3249.0,0.1677341]
[1736516858948,8.77,3249.3,3249.0,0.1677341]
[1736516859148,8.77,3249.1,3249.0,0.1677341]
[1736516859320,12.72783899,3249.1,3249.0,0.1677341]
[1736516859522,3.55,3249.0,3246.9,1.6261]
[1736516859721,8.77,3248.1,3246.9,1.6261]
[1736516859922,8.77,3247.9,3246.9,1.6261]
[1736516860122,0.0306899,3247.8,3246.9,1.6261]
[1736516860452,4.03966568,3248.7,3246.9,1.6261]
[1736516860453,8.77,3248.6,3247.6,3.07912]
[1736516860607,0.0306899,3248.5,3247.0,3.07976]
[1736516860814,8.77,3248.6,3248.0,3.07879]
[1736516861011,4.791,3248.9,3248.0,3.07879]
[1736516861012,0.27447631,3248.5,3248.0,3.0]
[1736516861211,0.27447631,3248.5,3247.7,3.0]
[1736516861415,0.478,3248.4,3247.7,3.079]
[1736516861671,0.478,3248.4,3248.2,3.07856]
[1736516861831,0.478,3248.4,3247.7,0.03078672]
[1736516862137,4.313,3248.9,3248.3,0.0075]
[1736516862485,8.77,3248.6,3247.5,1.6477]
[1736516862659,0.0306899,3248.5,3247.3,3.0794]
[1736516862808,0.5806899,3248.5,3247.0,1.593]
[1736516863011,3.0786,3248.3,3247.3,3.0075]
[1736516863207,8.77,3248.6,3247.8,0.0075]
[1736516863411,9.73793,3248.6,3247.6,3.07916]
[1736516863643,0.0306899,3248.5,3247.1,3.0]
[1736516863855,0.478,3248.4,3247.3,3.0]
[1736516864057,3.1092199,3248.3,3247.3,3.0]
[1736516864267,3.07874,3248.1,3247.0,4.67276]
[1736516864425,0.55,3247.7,3245.9,1.5145]
[1736516864761,8.77,3247.5,3246.5,3.08023]
[1736516864960,8.77,3247.5,3247.0,3.07975]
[1736516865162,0.0306899,3247.4,3246.9,0.0075]
[1736516865363,8.77,3247.3,3246.5,3.08015]
[1736516865535,8.77,3247.1,3246.3,3.08033]
[1736516865739,8.77,3247.1,3246.6,3.08012]
[1736516865740,8.77,3247.0,3246.6,3.08012]
[1736516865934,0.88006899,3247.1,3246.3,3.08037]
[1736516865935,8.77,3247.1,3246.3,3.08037]
[1736516866134,8.77,3247.1,3246.2,0.0075]
[1736516866135,8.77,3248.5,3247.4,3.0793]
[1736516866357,0.478,3248.4,3247.5,3.07921]
[1736516866612,0.478,3248.4,3247.3,0.0075]
[1736516866613,8.77,3248.3,3247.3,0.0075]
[1736516866756,9.248,3248.4,3247.4,3.0]
[1736516866954,9.248,3248.4,3247.9,3.07889]
[1736516867269,9.248,3248.4,3247.7,3.0]
[1736516867608,0.5086899,3248.3,3247.7,3.0]
[1736516867752,0.478,3248.3,3248.1,0.0075]
[1736516867952,8.8006899,3248.2,3247.3,3.07945]
[1736516868272,3.07903,3247.8,3246.7,3.07995]
[1736516868471,0.0306899,3247.7,3246.6,3.0801]
[1736516868671,3.079,3247.9,3246.8,3.07994]
[1736516868870,0.0306899,3247.8,3246.9,3.07983]
[1736516869279,0.0306899,3247.8,3246.7,3.0]
[1736516869280,3.39008099,3247.7,3246.7,3.0]
[1736516869483,8.77,3247.5,3246.7,3.0]
[1736516869692,8.77,3247.5,3246.5,0.0031]
[1736516869895,8.77,3247.5,3247.0,3.07968]
[1736516870351,8.77,3247.5,3246.8,0.0075]
[1736516870555,8.77,3248.2,3247.3,3.07944]
[1736516870775,8.77,3248.1,3247.0,0.0307953]
[1736516870978,3.60860582,3248.6,3246.6,3.0]
[1736516870979,0.5066899,3248.0,3247.1,0.0075]
[1736516871299,0.5066899,3248.0,3247.6,3.07916]
[1736516871589,8.77,3248.4,3246.8,2.1793]
[1736516871892,0.476,3248.7,3248.6,3.07824]
[1736516872188,0.476,3248.7,3248.6,6.07824]
[1736516872490,0.476,3248.7,3248.0,3.07872]
[1736516872661,11.8789499,3248.6,3247.2,3.07952]
[1736516872988,13.08384499,3248.5,3247.5,3.07925]
[1736516873290,0.0306899,3248.4,3247.3,3.0]
[1736516873475,0.0306899,3248.4,3247.5,3.07926]
[1736516873681,8.77,3248.5,3247.1,0.015]
[1736516873910,8.77,3248.5,3247.4,0.0075]
[1736516874223,0.0306899,3248.4,3246.9,1.5279]
[1736516874429,0.0306899,3248.4,3247.3,3.07942]
[1736516874430,11.84858,3248.3,3247.3,3.07942]
[1736516874587,8.77,3248.1,3247.0,3.0797]
[1736516874786,8.77,3247.9,3247.2,3.07955]
[1736516875027,8.77,3248.2,3246.8,0.03079625]
[1736516875322,8.77,3247.7,3247.2,3.07955]
[1736516875524,0.0306899,3247.6,3246.9,3.0798]
[1736516875726,8.77,3247.5,3247.0,3.07976]
[1736516875922,8.76592047,3247.2,3246.6,6.0801]
[1736516876250,8.76592047,3246.9,3246.5,0.0031]
[1736516876459,0.5066899,3246.8,3246.5,0.0031]
[1736516876633,8.76592047,3246.7,3246.5,0.0031]
[1736516876784,0.0306899,3246.6,3246.5,0.0031]
[1736516876990,8.76592047,3246.7,3246.5,3.08334]
[1736516877240,0.0306899,3246.6,3246.5,0.0031]
[1736516877580,8.79661037,3246.6,3246.5,0.0031]
[1736516877829,8.76592047,3246.6,3246.5,0.0031]
[1736516878130,9.69318151,3246.6,3246.5,0.0031]
[1736516878441,13.32332151,3246.6,3246.5,0.0031]
[1736516878824,16.32332151,3246.6,3246.5,0.0031]
[1736516879385,9.69318151,3246.6,3246.5,0.0031]
[1736516879590,12.80558615,3247.2,3246.5,0.0031]
[1736516879840,0.27331627,3246.6,3246.5,0.0031]
[1736516880002,9.58923674,3246.6,3246.5,0.0031]
[1736516880206,9.03923674,3246.6,3246.5,0.0031]
[1736516880646,13.57330041,3246.6,3246.5,0.0031]
[1736516880847,16.57330041,3246.6,3246.5,0.0031]
[1736516881154,9.51523674,3246.6,3246.5,0.0031]
[1736516881567,0.55,3246.5,3245.7,0.1677341]
[1736516881746,3.0809,3245.8,3245.7,0.1677341]
[1736516881948,3.08132,3245.4,3244.2,4.59317]
[1736516882151,0.0306899,3245.3,3244.2,1.5108]
[1736516882449,8.76592047,3245.0,3243.9,0.0075]
[1736516882649,3.08217,3244.5,3243.4,3.08318]
[1736516882821,0.0306899,3244.4,3243.1,1.5984]
[1736516883122,0.0306899,3244.4,3242.7,6.67093]
[1736516883123,3.08273,3243.9,3242.7,6.67093]
[1736516883312,0.8149629,3243.8,3242.7,6.67093]
[1736516883538,0.476,3243.8,3242.7,3.5871]
[1736516884058,8.76592047,3243.6,3242.7,3.5871]
[1736516884366,8.76592047,3243.4,3242.7,3.5871]
[1736516884659,8.76592047,3243.1,3242.7,3.5871]
[1736516884954,11.84958047,3242.9,3242.7,3.5871]
[1736516885176,8.76592047,3242.8,3242.7,3.5871]
[1736516885361,0.476,3243.1,3242.8,3.08375]
[1736516885564,0.477,3243.4,3242.8,3.0]
[1736516885719,8.76592047,3243.5,3242.9,3.0]
[1736516885925,0.477,3244.0,3243.4,3.0]
[1736516886119,0.5076899,3243.9,3243.8,3.0828]
[1736516886458,0.477,3243.9,3243.8,6.0828]
[1736516887033,4.318,3244.5,3244.4,3.08223]
[1736516887333,4.318,3244.5,3244.3,3.0]
[1736516887535,4.318,3244.5,3244.0,3.08261]
[1736516887735,4.318,3244.5,3244.4,6.08223]
[1736516887938,3.33022,3246.6,3244.5,4.73696]
[1736516887939,8.76592047,3245.9,3244.5,4.73696]
[1736516888265,0.5076899,3245.8,3245.2,3.08146]
[1736516888433,0.5076899,3245.8,3244.5,1.6549]
[1736516888633,8.76592047,3245.5,3243.9,1.6549]
[1736516888834,8.76592047,3245.3,3243.2,3.08336]
[1736516889068,11.84753047,3245.1,3243.7,3.08281]
[1736516889266,8.76592047,3245.1,3244.3,3.08232]
[1736516889466,8.76592047,3245.1,3243.5,0.0308245]
[1736516889695,0.87659205,3245.4,3244.7,3.08194]
[1736516889696,8.76592047,3245.0,3244.7,3.08194]
[1736516889898,8.76592047,3244.7,3244.6,3.08195]
[1736516890063,8.76592047,3245.2,3244.7,3.08194]
[1736516890258,8.76592047,3244.7,3243.3,3.08326]
[1736516890462,8.76592047,3244.4,3243.4,4.73806]
[1736516890689,9.27361037,3244.3,3243.2,3.08332]
[1736516890861,8.76592047,3243.9,3242.7,3.08378]
[1736516891063,8.76592047,3243.4,3242.8,0.03083652]
[1736516891301,8.76592047,3244.1,3243.4,3.08318]
[1736516891620,4.03966568,3243.6,3241.9,1.6434]
[1736516891927,8.76592047,3243.1,3241.9,1.6434]
[1736516892061,8.76592047,3243.1,3242.5,3.08404]
[1736516892264,8.76592047,3242.9,3242.8,3.08375]
[1736516892459,8.76592047,3243.9,3243.0,3.0835]
[1736516892721,9.24292047,3243.8,3243.7,3.08289]
[1736516892912,9.24292047,3243.8,3243.5,3.08306]
[1736516893120,0.477,3243.8,3243.7,3.08289]
[1736516893329,0.477,3244.5,3243.9,6.1654]
[1736516893483,0.0306899,3244.4,3242.8,3.08374]
[1736516893668,0.0306899,3244.4,3243.1,3.08346]
[1736516893669,8.76592047,3244.4,3243.1,3.08346]
[1736516893862,9.24292047,3244.3,3243.7,3.08288]
[1736516894090,0.0306899,3244.2,3243.2,3.08337]
[1736516894291,9.24292047,3244.3,3243.3,0.03082876]
[1736516894492,0.477,3244.3,3243.5,6.08308]
[1736516894747,0.477,3244.3,3244.0,3.08256]
[1736516894961,8.76592047,3245.5,3243.7,0.03082608]
[1736516895243,9.24292047,3245.8,3245.6,3.08102]
[1736516895527,9.24292047,3245.8,3245.7,3.08099]
[1736516895730,0.477,3245.8,3245.7,3.08099]
[1736516895939,0.5076899,3245.8,3245.5,3.08118]
[1736516896116,0.5076899,3245.8,3245.6,3.08108]
[1736516896430,4.32,3245.9,3245.8,3.0884]
[1736516896731,3.07939,3247.4,3245.8,3.0884]
[1736516896732,0.477,3246.5,3245.9,0.0075]
[1736516897055,0.477,3246.7,3246.0,0.0075]
[1736516897358,8.76592047,3246.6,3245.8,1.592]
[1736516897497,8.76592047,3246.6,3245.8,1.62280791]
[1736516897703,8.79661037,3246.5,3245.4,3.08128]
[1736516897930,9.69328151,3246.6,3245.2,3.08139]
[1736516898124,0.55,3246.3,3244.4,1.6359]
[1736516898326,3.08136,3245.4,3243.9,1.6359]
[1736516898615,3.0,3245.1,3242.9,4.71949]
[1736516898813,4.3506899,3245.0,3242.9,4.71949]
[1736516899073,3.08254,3244.1,3242.9,1.6359]
[1736516899202,3.5883099,3244.0,3242.9,3.08359]
[1736516899401,3.08274,3243.9,3242.4,1.7830341]
[1736516899638,3.08312,3243.5,3242.4,3.2518541]
[1736516899957,0.0306899,3243.4,3242.4,0.1677341]
[1736516900158,0.0306899,3243.4,3242.4,3.2518541]
[1736516900295,0.0306899,3243.4,3242.4,0.1677341]
[1736516900502,3.08312,3243.5,3242.4,3.2518141]
[1736516900815,0.308312,3243.4,3242.4,0.1677341]
[1736516901024,8.79661037,3243.3,3242.4,0.1677341]
[1736516901246,8.76592047,3243.3,3242.4,0.1677341]
[1736516901402,3.08385,3242.7,3242.4,0.1677341]
[1736516901601,12.35558037,3242.6,3242.4,0.1677341]
[1736516901908,9.24092047,3242.6,3242.4,0.1677341]
[1736516902107,0.475,3242.6,3242.4,0.1677341]
[1736516902308,11.88065037,3242.5,3242.4,0.1677341]
[1736516902527,11.84996047,3242.5,3242.4,0.1677341]
[1736516902844,14.84996047,3242.5,3242.4,0.1677341]
[1736516903036,16.38245652,3242.5,3242.4,0.1677341]
[1736516903195,16.38245652,3242.5,3240.5,3.08594]
[1736516903196,3.08432,3242.2,3240.5,3.08594]
[1736516903400,3.08432,3242.2,3241.0,3.08542]
[1736516903401,8.79661037,3242.1,3241.0,3.08542]
[1736516903602,8.76592047,3242.0,3241.4,3.08499]
[1736516903839,1.8050941,3242.5,3241.1,0.03835065]
[1736516903840,8.76592047,3242.4,3241.1,0.03835065]
[1736516903999,8.76592047,3242.4,3241.0,0.03084846]
[1736516904213,11.88089037,3242.3,3241.1,3.08536]
[1736516904416,0.475,3242.2,3240.6,3.08584]
[1736516904612,0.0306899,3242.1,3240.4,1.5702]
[1736516904832,0.475,3242.2,3240.9,3.08556]
[1736516905074,8.76592047,3242.1,3241.2,3.08518]
[1736516905419,8.76592047,3242.1,3240.6,0.03085306]
[1736516905663,8.76592047,3242.1,3241.1,3.08535]
[1736516905864,8.76592047,3241.9,3241.1,3.08536]
[1736516906175,0.0306899,3241.8,3241.1,3.08536]
[1736516906371,4.235928,3243.0,3240.3,4.03966568]
[1736516906372,8.76592047,3242.8,3241.4,1.515]
[1736516906514,8.76592047,3242.6,3241.4,1.515]
[1736516906716,0.0306899,3242.5,3241.4,3.08507]
[1736516906921,0.475,3242.4,3240.9,0.0075]
[1736516907226,8.76592047,3242.1,3240.8,1.515]
[1736516907417,8.76592047,3242.1,3240.9,0.04585135]
[1736516907728,0.475,3242.0,3241.7,3.08476]
[1736516907947,8.79661037,3241.9,3241.3,3.08515]
[1736516908134,8.79661037,3241.9,3240.8,1.515]
[1736516908135,9.24092047,3241.9,3240.8,1.515]
[1736516908333,9.24092047,3241.9,3240.1,1.5662]
[1736516908334,8.76592047,3241.7,3240.1,1.5662]
[1736516908537,8.79661037,3241.6,3240.8,3.08558]
[1736516908736,8.76592047,3241.1,3240.3,3.08608]
[1736516908922,8.76592047,3240.9,3240.5,3.08593]
[1736516909122,8.76592047,3240.9,3240.8,3.08565]
[1736516909324,8.76592047,3240.9,3240.8,3.09315]
[1736516909630,7.22314047,3240.9,3240.8,3.09315]
[1736516909838,7.22314047,3240.9,3240.8,3.08565]
[1736516910233,7.22314047,3240.9,3240.8,3.09315]
[1736516910432,7.22314047,3240.9,3240.8,3.08565]
[1736516911265,7.22314047,3240.9,3240.6,3.08584]
[1736516911564,7.22314047,3240.9,3240.8,3.09315]
[1736516911948,7.22314047,3240.9,3240.8,4.69255]
[1736516912278,0.475,3241.3,3240.1,3.08628]
[1736516912437,0.475,3241.2,3241.1,3.08537]
[1736516912823,5.68036047,3242.2,3241.2,0.0075]
[1736516913022,5.68036047,3242.9,3241.2,0.03084901]
[1736516913266,4.324,3243.0,3241.1,4.69227]
[1736516913267,0.475,3242.6,3241.1,4.6069]
[1736516913469,0.475,3242.6,3242.4,3.08408]
[1736516913650,0.0306899,3242.5,3241.7,3.0848]
[1736516913967,4.324,3243.0,3241.1,4.6069]
[1736516913968,0.475,3242.4,3241.8,0.03084524]
[1736516914173,5.68036047,3242.2,3241.1,1.6069]
[1736516914331,0.0306899,3242.1,3241.1,1.76759]
[1736516914527,0.0306899,3242.1,3242.0,3.08451]
[1736516914770,4.324,3243.0,3242.7,3.08384]
[1736516914771,0.475,3242.8,3242.7,3.08384]
[1736516914927,4.324,3243.0,3242.5,0.0075]
[1736516915551,0.475,3243.2,3243.0,0.0075]
[1736516915752,5.68036047,3243.9,3243.0,0.0075]
[1736516915753,0.0306899,3243.8,3243.2,0.0075]
[1736516915928,1.235523,3244.0,3243.3,0.03083224]
[1736516916128,5.68036047,3243.8,3242.3,1.635]
[1736516916325,5.71105037,3243.7,3242.3,1.635]
[1736516916531,5.71105037,3243.7,3241.8,4.03966568]
[1736516916532,6.15536047,3243.6,3242.0,1.5298]
[1736516916730,5.68036047,3243.5,3242.3,0.015]
[1736516917056,4.65487153,3244.8,3242.3,0.015]
[1736516917057,0.475,3243.7,3242.8,3.08375]
[1736516917257,5.68036047,3244.2,3243.0,0.015]
[1736516917566,3.08301,3243.6,3242.3,3.08415]
[1736516917866,5.68036047,3243.4,3241.6,1.5298]
[1736516918029,8.71105037,3243.3,3241.2,1.5298]
[1736516918369,5.68036047,3243.3,3242.1,0.0075]
[1736516918538,8.76373047,3243.2,3241.7,3.0]
[1736516918740,5.68036047,3243.1,3242.3,3.08416]
[1736516918954,4.03966568,3243.8,3241.8,3.08463]
[1736516918955,0.0306899,3243.0,3241.8,3.08463]
[1736516919160,5.68036047,3242.9,3242.2,3.08423]
[1736516919374,5.68036047,3243.5,3242.4,0.015]
[1736516919555,0.0306899,3243.4,3242.7,3.08383]
[1736516919761,5.68036047,3244.0,3242.2,3.08428]
[1736516919762,0.475,3243.3,3242.2,3.08428]
[1736516920057,0.475,3243.3,3243.0,3.08351]
[1736516920233,0.475,3243.3,3243.2,3.09087]
[1736516920565,0.475,3243.5,3243.3,3.08319]
[1736516920767,5.68036047,3244.3,3243.4,0.0075]
[1736516920970,5.68036047,3244.3,3243.4,0.03082782]
[1736516920971,0.475,3244.0,3243.4,0.03082782]
[1736516921142,0.0306899,3243.9,3243.0,1.6572]
[1736516921348,0.475,3243.8,3242.7,1.5266]
[1736516921542,0.0306899,3243.7,3242.7,1.5266]
[1736516921745,0.475,3243.7,3243.0,3.08347]
[1736516921944,0.475,3243.7,3242.8,0.03083575]
[1736516922133,0.475,3243.7,3243.1,3.08346]
[1736516922333,0.0306899,3243.6,3243.0,3.08348]
[1736516922539,5.68036047,3243.5,3242.1,3.08442]
[1736516922765,5.68036047,3243.3,3242.2,3.11514847]
[1736516923067,5.68036047,3243.3,3242.6,0.0075]
[1736516923268,0.475,3243.2,3242.9,3.08357]
[1736516923476,0.475,3243.2,3242.6,0.0075]
[1736516923642,0.475,3243.2,3242.6,3.09142]
[1736516923843,0.0306899,3243.1,3242.4,3.0841]
[1736516924046,0.475,3243.2,3242.6,3.08386]
[1736516924261,0.475,3243.2,3242.5,0.0075]
[1736516924452,5.68036047,3242.9,3242.0,1.6539]
[1736516924635,5.68036047,3242.8,3241.5,1.5831]
[1736516924835,5.68036047,3242.8,3242.5,3.08401]
[1736516925068,5.68036047,3242.8,3241.8,4.03966568]
[1736516925069,0.0306899,3242.7,3241.8,3.08462]
[1736516925378,5.68036047,3242.8,3241.9,0.03084266]
[1736516925548,5.68036047,3242.4,3241.5,4.66801]
[1736516925756,5.68036047,3242.1,3241.3,3.08509]
[1736516926058,5.68036047,3242.1,3241.2,3.0852]
[1736516926377,3.65188605,3242.7,3241.1,0.0075]
[1736516926378,5.68036047,3242.0,3241.1,0.0075]
[1736516926671,5.68036047,3242.2,3241.3,0.0075]
[1736516927077,5.68036047,3241.9,3240.3,4.03966568]
[1736516927234,0.0306899,3241.8,3239.8,4.03966568]
[1736516927443,5.68036047,3241.5,3240.1,1.5983]
[1736516927642,0.5056899,3241.4,3240.1,4.68457]
[1736516927976,0.475,3241.4,3240.7,3.08575]
[1736516928143,0.475,3241.4,3241.1,0.0075]
[1736516928338,0.475,3241.4,3241.3,3.09268]
[1736516928859,0.475,3241.4,3241.3,0.0075]
[1736516929040,0.475,3241.4,3241.1,3.08533]
[1736516929444,0.475,3241.4,3241.1,3.08528]
[1736516929737,5.68036047,3241.3,3240.5,3.08586]
[1736516929966,5.68036047,3241.2,3240.1,1.62915618]
[1736516930140,5.68036047,3241.0,3239.9,3.08649]
[1736516930446,5.68036047,3241.8,3240.3,0.015]
[1736516930640,0.473,3241.0,3240.4,1.5525]
[1736516930845,0.473,3241.0,3240.7,3.08569]
[1736516931074,0.473,3241.0,3240.6,3.08582]
[1736516931278,0.473,3241.0,3240.2,3.0862]
[1736516931476,5.68036047,3240.8,3240.3,0.03086085]
[1736516931795,0.473,3241.0,3240.4,0.0225]
[1736516931988,0.473,3241.0,3240.2,3.08622]
[1736516932151,5.68036047,3240.9,3239.9,4.5525]
[1736516932350,5.68036047,3240.9,3240.5,3.08586]
[1736516932676,0.473,3241.1,3240.6,0.0075]
[1736516932836,0.473,3241.0,3240.7,3.0857]
[1736516933039,0.473,3241.0,3240.9,3.09306]
[1736516933278,5.68036047,3242.2,3241.0,0.015]
[1736516933497,0.473,3242.1,3241.0,0.04585037]
[1736516933640,0.473,3242.1,3241.5,0.015]
[1736516933841,0.474,3243.0,3241.7,1.5023]
[1736516934084,0.474,3243.0,3242.3,0.0075]
[1736516934325,0.0306899,3242.9,3241.9,3.0846]
[1736516934457,0.0306899,3242.9,3241.6,3.08481]
[1736516934653,5.68036047,3242.6,3241.0,0.15481504]
[1736516934872,5.68036047,3242.0,3241.0,3.08544]
[1736516935069,5.68036047,3242.0,3240.4,4.03966568]
[1736516935070,5.68036047,3242.0,3241.1,3.08534]
[1736516935274,5.68036047,3241.9,3241.4,3.08505]
[1736516935483,0.474,3243.0,3241.5,0.0075]
[1736516935484,5.68036047,3242.4,3241.5,0.0075]
[1736516935688,5.68036047,3242.9,3242.5,3.08403]
[1736516935856,5.71105037,3242.8,3241.7,0.0225]
[1736516936057,0.474,3242.8,3241.5,3.0]
[1736516936250,5.68036047,3243.4,3243.0,3.08353]
[1736516936442,5.68036047,3243.2,3241.8,0.015]
[1736516936644,5.68036047,3243.6,3243.5,3.08308]
[1736516936958,5.68036047,3243.6,3241.9,4.04716568]
[1736516936959,5.68036047,3243.5,3243.0,3.08353]
[1736516937149,5.68036047,3243.3,3242.8,3.08366]
[1736516937500,0.0306899,3243.2,3242.8,3.08368]
[1736516937972,0.474,3243.1,3242.8,3.08368]
[1736516938171,5.68036047,3242.9,3241.9,3.08455]
[1736516938348,5.68036047,3242.9,3241.8,1.6046]
[1736516938349,0.0306899,3242.8,3242.0,3.08451]
[1736516938544,0.0306899,3242.8,3242.1,0.0075]
[1736516938916,5.68036047,3242.9,3242.5,3.08395]
[1736516939219,0.474,3243.2,3242.7,0.0075]
[1736516939393,0.474,3243.2,3243.1,3.08346]
[1736516939742,0.473,3243.5,3243.4,3.08318]
[1736516940194,0.473,3243.5,3243.2,3.08334]
[1736516940357,5.71105037,3243.4,3242.7,3.08375]
[1736516940557,5.71105037,3243.4,3242.3,3.08423]
[1736516940558,5.68036047,3243.2,3242.1,3.08437]
[1736516940760,5.71105037,3243.1,3241.1,4.60647]
[1736516940960,3.08366,3242.9,3241.3,3.08509]
[1736516941156,5.68036047,3243.1,3242.2,3.08424]
[1736516941481,5.68036047,3243.0,3242.4,3.08413]
[1736516941686,5.68036047,3243.0,3242.1,0.03834073]
[1736516941846,5.68036047,3242.8,3240.7,3.0857]
[1736516942049,0.55,3242.4,3241.3,3.0851]
[1736516942386,5.68036047,3242.1,3241.4,3.08505]
[1736516942574,5.68036047,3242.1,3239.9,4.65401]
[1736516942575,3.08501,3241.5,3239.9,4.65401]
[1736516942777,3.08536,3241.2,3240.2,3.0862]
[1736516942950,8.76592047,3241.0,3239.9,3.08647]
[1736516943150,3.08602,3240.5,3239.4,3.08698]
[1736516943419,3.08602,3240.5,3239.1,0.1677341]
[1736516943420,3.5897499,3240.4,3239.1,0.1677341]
[1736516943615,8.76650047,3240.3,3239.3,3.08706]
[1736516943890,5.71105037,3240.2,3239.1,0.1677341]
[1736516944097,6.25146551,3240.1,3239.1,0.1677341]
[1736516944402,0.55,3240.0,3239.1,0.1677341]
[1736516944631,3.6671199,3240.0,3239.1,0.1677341]
[1736516945075,8.76693047,3239.9,3239.1,0.1677341]
[1736516945405,3.6672999,3239.8,3239.1,0.1677341]
[1736516945709,0.93476604,3239.7,3239.1,0.1677341]
[1736516946006,5.68036047,3239.5,3239.1,0.1677341]
[1736516946311,5.68036047,3239.5,3236.8,5.06285351]
[1736516946312,3.08746,3238.9,3237.2,3.08905]
[1736516946621,6.23036047,3239.2,3237.1,3.08914]
[1736516946622,3.08814,3238.2,3237.1,3.08914]
[1736516946826,0.3395039,3238.1,3236.9,3.08928]
[1736516946969,1.024,3238.0,3236.3,6.10395892]
[1736516947285,0.0306899,3237.9,3236.8,3.08946]
[1736516947462,5.68036047,3237.9,3236.7,4.03966568]
[1736516947669,5.68036047,3237.9,3237.7,3.08861]
[1736516947963,5.68036047,3237.8,3236.8,3.08947]
[1736516948211,5.68036047,3237.8,3237.1,3.0]
[1736516948430,0.474,3238.4,3237.2,0.03088925]
[1736516948604,0.474,3238.3,3237.4,3.08887]
[1736516948809,8.77,3237.8,3237.4,3.08885]
[1736516949103,8.77,3237.8,3236.7,4.03966568]
[1736516949104,0.5046899,3237.7,3236.3,1.6625]
[1736516949275,0.0306899,3237.6,3236.4,3.08985]
[1736516949493,8.77,3237.6,3236.4,0.03089494]
[1736516949685,8.77,3237.6,3236.7,0.0075]
[1736516949883,8.77,3237.6,3236.9,3.0893]
[1736516950078,8.77,3237.6,3237.3,3.08892]
[1736516950308,0.0306899,3237.5,3237.3,3.08892]
[1736516950492,8.77,3237.6,3236.7,7.12919568]
[1736516950693,8.77,3237.6,3237.1,3.0891]
[1736516951023,8.77,3237.4,3236.7,3.08956]
[1736516951205,0.0306899,3237.3,3236.5,3.08975]
[1736516951518,0.0306899,3237.3,3236.5,3.08971]
[1736516951817,0.0306899,3237.3,3236.2,3.09002]
[1736516951818,8.77,3237.2,3235.8,0.1677341]
[1736516952023,8.77,3237.6,3236.5,3.08966]
[1736516952320,8.77,3237.6,3236.6,3.0896]
[1736516952321,0.0306899,3237.5,3236.6,3.0896]
[1736516952509,0.0306899,3237.5,3236.2,0.0075]
[1736516952510,0.5806899,3237.5,3236.2,0.0075]
[1736516952707,0.5806899,3237.5,3235.8,3.2580741]
[1736516952708,0.5806899,3237.5,3236.3,3.08992]
[1736516953022,8.77,3237.0,3235.8,0.1677341]
[1736516953345,8.77,3236.8,3235.8,0.1677341]
[1736516953622,0.0306899,3236.7,3235.9,3.09025]
[1736516953934,8.77,3236.6,3236.1,3.09007]
[1736516954281,8.77,3236.6,3236.2,3.08997]
[1736516954485,0.0306899,3236.5,3235.8,0.1677341]
[1736516954685,8.77,3236.4,3235.8,0.1677341]
[1736516954910,8.77,3236.2,3235.8,0.1677341]
[1736516955189,8.77,3236.0,3235.8,0.1677341]
[1736516955386,0.0306899,3235.9,3235.8,0.1677341]
[1736516955924,8.77,3235.9,3235.8,0.1677341]
[1736516956288,0.474,3236.1,3235.8,0.1677341]
[1736516956682,0.474,3236.1,3236.0,3.09023]
[1736516957084,8.77,3237.6,3236.6,3.08966]
[1736516957287,8.77,3237.4,3235.9,0.0075]
[1736516957507,0.0306899,3237.3,3235.8,4.20739978]
[1736516957818,8.77,3237.2,3235.8,0.1677341]
[1736516957986,8.77,3237.2,3235.9,3.09033]
[1736516958324,0.472,3237.1,3237.0,3.08928]
[1736516959015,4.329,3238.1,3236.8,0.01564093]
[1736516959016,8.77,3238.0,3236.8,0.01564093]
[1736516959355,8.77,3238.6,3238.2,3.08809]
[1736516959668,8.77,3238.6,3237.2,3.08908]
[1736516959669,0.0386022,3238.5,3237.2,3.08908]
[1736516959940,0.93476604,3239.7,3237.6,0.0075]
[1736516959941,8.77,3239.5,3237.6,0.0075]
[1736516960225,3.08573,3240.8,3237.6,0.0075]
[1736516960226,0.472,3239.4,3238.8,3.08752]
[1736516960392,0.472,3239.4,3239.3,3.08708]
[1736516960589,8.77,3239.9,3239.3,3.08708]
[1736516960825,0.472,3239.8,3239.1,0.0075]
[1736516961025,0.472,3239.8,3239.7,3.0867]
[1736516961324,0.472,3240.7,3240.6,3.08584]
[1736516961827,0.472,3240.7,3239.8,3.08661]
[1736516961828,0.472,3241.2,3241.1,3.08537]
[1736516962027,0.472,3241.8,3241.5,3.08498]
[1736516962329,8.77,3242.2,3241.2,0.0075]
[1736516962495,0.472,3242.5,3241.5,4.03966568]
[1736516962688,8.36866568,3244.2,3242.0,5.70006568]
[1736516962689,8.77,3242.7,3242.0,5.70006568]
[1736516962997,8.8085552,3242.6,3241.5,7.12459568]
[1736516963304,0.472,3242.7,3241.7,0.0075]
[1736516963505,0.61002003,3243.9,3241.7,0.0075]
[1736516963506,9.242,3242.8,3241.9,3.08461]
[1736516963717,3.59440511,3242.7,3241.4,3.08508]
[1736516964032,3.08413,3242.4,3241.2,3.08526]
[1736516964190,0.03856355,3242.3,3240.6,3.08576]
[1736516964391,0.55,3242.2,3240.6,3.08576]
[1736516964591,0.55,3242.0,3240.0,7.12600568]
[1736516964902,3.08469,3241.9,3240.1,0.015]
[1736516965225,3.08469,3241.9,3240.0,4.03966568]
[1736516965226,0.81904457,3241.8,3240.2,3.08616]
[1736516965426,3.08457,3242.0,3240.7,3.08571]
[1736516965603,8.80856976,3241.9,3240.3,0.0075]
[1736516965785,9.242,3241.8,3240.6,0.0075]
[1736516966127,0.51056637,3241.7,3240.5,4.03966568]